bitfinex-derivatives/quotes_ETHF0:USTF0_20260306
["timestamp","ask_amount","ask_price","bid_price","bid_amount"]
[1772807448465,8.97073767,2008.5,2007.6,14.02]
[1772807448867,8.97073767,2008.3,2007.6,0.00526328]
[1772807449066,8.97073767,2008.1,2007.1,14.014]
[1772807449261,8.97073767,2007.9,2006.9,9.31155398]
[1772807449565,8.97073767,2008.4,2007.0,9.31155398]
[1772807449960,8.97073767,2008.3,2007.0,9.31155398]
[1772807450164,8.97073767,2008.3,2007.0,9.3173791]
[1772807450565,8.97073767,2007.7,2007.0,0.00582512]
[1772807451066,8.97073767,2007.1,2005.8,9.31155398]
[1772807451368,8.97073767,2007.5,2005.8,9.31155398]
[1772807451562,8.97073767,2007.5,2006.0,9.31155398]
[1772807451766,8.97073767,2007.1,2006.1,23.38255398]
[1772807451958,14.34095002,2007.4,2006.3,9.31155398]
[1772807452165,8.97073767,2007.4,2006.3,9.31155398]
[1772807452363,8.97073767,2007.4,2006.1,0.00484859]
[1772807452364,9.21985767,2007.2,2006.1,0.00484859]
[1772807452764,9.21987767,2007.0,2006.1,0.00484859]
[1772807452961,9.22558956,2007.0,2005.7,9.31155398]
[1772807453363,8.97644956,2007.0,2005.8,9.31155398]
[1772807453563,0.00571189,2007.0,2005.8,9.31155398]
[1772807453773,8.97073767,2007.6,2006.1,9.56080398]
[1772807453966,8.97073767,2008.4,2006.6,9.31155398]
[1772807454270,8.97073767,2008.4,2006.8,9.31155398]
[1772807454462,8.97073767,2009.0,2007.1,9.31155398]
[1772807454859,8.97073767,2009.0,2007.1,9.31682936]
[1772807454860,8.97438764,2009.0,2007.1,9.31682936]
[1772807455168,9.10589788,2008.9,2007.3,8.88103144]
[1772807455566,9.10589788,2008.9,2007.1,0.00527538]
[1772807455567,9.10589788,2008.9,2007.5,8.88103144]
[1772807456264,9.10589788,2008.9,2007.6,22.86703144]
[1772807456459,9.10589788,2008.9,2007.6,8.88103144]
[1772807456866,8.85699788,2008.4,2007.3,8.88103144]
[1772807457067,8.85699788,2008.4,2007.4,22.72603144]
[1772807457265,8.85699788,2008.4,2007.4,8.88103144]
[1772807457967,8.85699788,2008.7,2007.4,8.88103144]
[1772807458168,9.10593788,2008.6,2007.6,8.88103144]
[1772807458866,0.24894,2008.6,2007.6,8.88103144]
[1772807459067,0.00364997,2009.0,2007.6,8.88103144]
[1772807459265,8.85699788,2009.5,2007.8,8.88103144]
[1772807459666,0.2488,2009.8,2008.3,8.88103144]
[1772807459867,0.2488,2009.8,2008.5,8.88103144]
[1772807460170,0.2488,2009.8,2008.7,8.88103144]
[1772807460474,9.10571788,2010.4,2008.8,8.88103144]
[1772807460662,9.10571788,2010.4,2009.0,8.88103144]
[1772807460865,8.85699788,2009.6,2008.7,8.88594751]
[1772807461069,9.10584788,2009.3,2008.7,0.00491607]
[1772807461274,0.24892,2008.8,2008.1,8.88103144]
[1772807461564,8.85699788,2009.1,2007.3,5.29037068]
[1772807461770,8.93388675,2008.6,2007.4,8.11802258]
[1772807462168,8.93934636,2008.6,2007.4,8.12332734]
[1772807462469,8.93934636,2008.6,2007.6,8.11802258]
[1772807462470,0.25439961,2008.6,2007.6,8.11802258]
[1772807462669,8.93934636,2008.6,2007.6,8.11802258]
[1772807462967,8.69040636,2008.6,2007.7,21.80302258]
[1772807463171,8.69040636,2008.6,2007.7,8.11802258]
[1772807463367,8.68494675,2008.2,2007.4,21.84132734]
[1772807463565,0.24897,2008.3,2007.5,8.11802258]
[1772807463770,0.24904,2007.8,2007.1,8.11802258]
[1772807464072,8.93398675,2007.8,2006.8,8.11802258]
[1772807464872,0.00545961,2008.6,2006.8,0.00485421]
[1772807464873,8.93400675,2007.6,2006.8,0.00485421]
[1772807465372,0.24913,2007.1,2006.2,8.11802258]
[1772807465577,8.73,2008.2,2005.5,8.11802258]
[1772807465578,8.68494675,2006.6,2005.5,8.11802258]
[1772807465765,8.68494675,2006.4,2005.5,8.11802258]
[1772807466174,8.68494675,2006.4,2005.2,8.11802258]
[1772807466371,8.68853784,2006.4,2005.3,8.11802258]
[1772807467070,0.00359109,2006.4,2005.5,8.11802258]
[1772807467371,8.68494675,2007.2,2005.7,8.11802258]
[1772807467970,8.68494675,2007.0,2005.7,8.11802258]
[1772807468173,8.69116052,2007.0,2005.9,8.11802258]
[1772807468374,0.00621377,2007.0,2005.9,8.11802258]
[1772807468567,8.69116052,2007.0,2005.9,8.11802258]
[1772807468772,8.68494675,2006.8,2005.7,21.68902258]
[1772807468973,8.93411675,2006.7,2005.7,8.11802258]
[1772807469169,8.68494675,2006.4,2005.4,8.11802258]
[1772807469374,8.68494675,2006.2,2005.2,8.12306199]
[1772807470170,8.68494675,2006.8,2005.3,8.11802258]
[1772807470378,8.68494675,2006.2,2005.2,0.00503941]
[1772807470577,0.00621377,2007.0,2005.2,0.00503941]
[1772807470578,8.93419675,2006.1,2005.2,0.00503941]
[1772807470773,8.93419675,2006.1,2005.2,8.12306199]
[1772807470981,8.68494675,2006.4,2005.2,8.12306199]
[1772807471180,8.93412675,2006.7,2005.2,8.12306199]
[1772807471377,8.93418675,2006.2,2005.4,8.11802258]
[1772807471575,8.93418675,2006.2,2005.2,8.12306199]
[1772807472473,8.68494675,2006.6,2005.2,8.12306199]
[1772807472780,0.24916,2006.8,2005.4,8.11802258]
[1772807472980,0.00621377,2007.0,2005.7,8.11802258]
[1772807473169,0.00621377,2007.0,2005.6,3.5661035]
[1772807473170,0.00621377,2007.0,2005.9,8.11802258]
[1772807473577,8.68494675,2007.9,2006.2,8.11802258]
[1772807474076,8.68494675,2008.5,2006.7,8.11802258]
[1772807474272,8.68494675,2008.5,2006.9,8.11802258]
[1772807474471,0.00610291,2008.5,2007.2,8.11802258]
[1772807474670,8.68494675,2008.3,2007.3,8.11802258]
[1772807474883,8.93393675,2008.2,2007.3,8.11802258]
[1772807475186,0.24899,2008.2,2007.3,8.11802258]
[1772807475381,8.93406675,2007.2,2006.9,0.00404885]
[1772807475582,8.93406675,2007.2,2006.2,8.11802258]
[1772807475786,8.93406675,2007.2,2005.9,8.11802258]
[1772807476383,0.24912,2007.2,2006.1,8.11802258]
[1772807476582,8.93406675,2007.2,2006.1,8.12193079]
[1772807476777,0.24918,2006.7,2006.1,0.00390821]
[1772807476982,8.93823705,2006.7,2006.1,0.00390821]
[1772807477485,0.0041103,2006.7,2006.1,8.12193079]
[1772807477687,8.93405675,2007.3,2006.1,8.12193079]
[1772807478090,8.93411675,2006.7,2005.5,8.11802258]
[1772807478386,8.93418675,2006.2,2005.1,8.11802258]
[1772807478688,0.2493,2005.7,2005.1,8.11802258]
[1772807478890,8.93424675,2005.7,2004.8,8.11802258]
[1772807479184,8.68494675,2005.9,2004.6,8.11802258]
[1772807479388,8.68977136,2005.9,2004.8,8.11802258]
[1772807479582,8.68494675,2005.7,2004.8,8.11802258]
[1772807480286,0.00482461,2005.9,2004.8,8.11802258]
[1772807480488,8.68494675,2006.4,2005.0,8.11802258]
[1772807480691,8.68494675,2006.8,2005.2,8.11802258]
[1772807481085,8.93414675,2006.5,2005.2,8.11802258]
[1772807481284,0.24932,2005.5,2004.6,22.2534919]
[1772807481487,8.94005873,2005.5,2004.6,8.1224919]
[1772807481687,0.24939,2005.0,2004.6,0.00446932]
[1772807481885,5.470211,2005.4,2004.6,0.00446932]
[1772807482090,8.93430675,2005.2,2004.6,0.00446932]
[1772807482688,8.68494675,2004.4,2003.2,8.78619581]
[1772807482991,8.68494675,2004.8,2003.2,8.78619581]
[1772807483191,8.68494675,2004.6,2003.2,8.78619581]
[1772807483584,8.68494675,2004.6,2003.3,8.11802258]
[1772807484085,8.88779198,2005.5,2003.2,8.79061158]
[1772807484086,8.93439675,2004.5,2003.2,8.79061158]
[1772807484390,8.68494675,2004.4,2003.2,8.79061158]
[1772807484587,8.68494675,2004.4,2003.3,8.11802258]
[1772807484890,8.68494675,2005.0,2003.4,8.11802258]
[1772807485093,8.68494675,2004.8,2003.4,8.11802258]
[1772807485293,8.68494675,2004.6,2003.2,0.672589]
[1772807485496,8.68494675,2004.4,2003.2,0.672589]
[1772807485693,8.68494675,2004.4,2003.2,8.79061158]
[1772807486092,8.896,2005.4,2003.2,8.79061158]
[1772807486093,8.68494675,2004.2,2003.2,8.79061158]
[1772807486292,8.93444675,2004.1,2003.2,0.672589]
[1772807486496,5.63706192,2004.3,2003.2,8.79061158]
[1772807486696,0.24942,2004.8,2003.5,8.11802258]
[1772807486697,8.93436675,2004.8,2003.5,8.11802258]
[1772807486895,0.24934,2005.4,2003.7,8.11802258]
[1772807487090,8.93428675,2005.4,2004.0,8.11802258]
[1772807487293,8.93435675,2004.9,2004.0,8.11802258]
[1772807487492,0.00579198,2005.5,2004.1,8.11802258]
[1772807487493,14.41589957,2005.3,2004.1,8.11802258]
[1772807487693,0.25511198,2005.5,2004.2,8.11802258]
[1772807487992,8.723,2007.2,2004.1,14.342]
[1772807487993,0.24926,2006.1,2005.0,8.11802258]
[1772807488295,5.73095282,2006.9,2005.4,3.5661035]
[1772807488497,14.41589957,2006.9,2005.6,8.11802258]
[1772807488689,8.93406675,2007.1,2005.6,8.11802258]
[1772807488893,8.93406675,2007.1,2005.8,8.11802258]
[1772807489098,8.93770397,2007.1,2005.9,8.11802258]
[1772807489691,0.25275722,2007.1,2006.0,8.11802258]
[1772807489893,0.24905,2007.8,2006.5,8.11802258]
[1772807490103,8.93399675,2007.8,2006.5,8.11802258]
[1772807490398,8.68494675,2007.3,2006.1,8.11802258]
[1772807490593,8.93405675,2007.2,2006.1,8.11802258]
[1772807490794,8.93413675,2006.6,2005.8,0.00641902]
[1772807490993,8.93787345,2006.6,2005.8,0.00641902]
[1772807491193,8.93787345,2006.6,2005.8,8.1244416]
[1772807491392,8.93787345,2006.6,2005.8,0.00641902]
[1772807491998,0.24926,2006.1,2004.9,14.034]
[1772807492302,7.89906516,2006.5,2005.0,7.44966308]
[1772807492693,0.0037367,2006.6,2005.0,7.44966308]
[1772807492893,0.0037367,2006.6,2005.2,7.44966308]
[1772807493090,7.90280186,2006.6,2005.2,7.4541337]
[1772807493290,0.0037367,2006.6,2005.4,7.44966308]
[1772807493499,0.24917,2006.8,2005.6,7.44966308]
[1772807493793,0.24917,2006.8,2005.8,7.44966308]
[1772807493994,0.24917,2006.8,2005.8,21.69366308]
[1772807494195,8.14823516,2006.8,2005.5,7.44966308]
[1772807494397,8.14829516,2006.3,2005.3,7.44966308]
[1772807494596,7.89906516,2005.5,2005.2,0.00447062]
[1772807494797,7.89906516,2005.5,2004.7,7.44966308]
[1772807495403,8.14839516,2005.4,2004.0,7.44966308]
[1772807495599,7.89906516,2005.1,2004.0,7.44966308]
[1772807495793,8.14844516,2005.0,2004.0,7.45598489]
[1772807496398,0.00504255,2005.1,2004.0,7.45598489]
[1772807496594,0.24932,2005.6,2004.0,7.45598489]
[1772807496595,6.76622703,2005.6,2004.0,7.45598489]
[1772807496797,0.24939,2005.0,2004.0,7.45598489]
[1772807497294,6.48672904,2005.0,2004.0,0.00632181]
[1772807497495,6.73617904,2004.5,2003.3,7.44966308]
[1772807498198,0.24945,2004.5,2003.3,7.44966308]
[1772807498398,0.24945,2004.5,2003.5,7.44966308]
[1772807498399,0.00481258,2004.5,2003.5,7.44966308]
[1772807498800,12.98237722,2004.4,2003.3,0.00362379]
[1772807499002,0.24948,2004.2,2003.3,7.45328687]
[1772807499210,7.20104372,2004.2,2003.3,7.45328687]
[1772807499408,7.20104372,2004.2,2003.3,0.00362379]
[1772807499603,7.20111372,2003.7,2001.9,7.44966308]
[1772807499804,7.20111372,2003.7,2002.0,7.44966308]
[1772807500011,7.20111372,2003.7,2002.2,7.44966308]
[1772807500012,5.37603415,2003.6,2002.2,7.44966308]
[1772807500199,6.4920433,2003.7,2002.3,7.44966308]
[1772807500805,6.25610846,2003.5,2002.3,7.45385994]
[1772807501011,5.7615975,2003.6,2002.3,7.45385994]
[1772807501204,0.24955,2003.7,2002.3,7.45385994]
[1772807501509,6.50565846,2003.7,2002.3,7.45385994]
[1772807501910,0.24955,2003.7,2002.3,7.45385994]
[1772807502209,0.24955,2003.7,2002.5,7.44966308]
[1772807503104,6.6351373,2003.7,2002.5,7.44966308]
[1772807503506,0.00481258,2004.5,2002.5,7.44966308]
[1772807503507,0.24962,2003.2,2002.5,7.44966308]
[1772807503708,0.24962,2003.2,2002.3,7.45385994]
[1772807504109,6.61602725,2003.2,2002.3,0.00419686]
[1772807504414,0.24967,2002.7,2001.3,7.44966308]
[1772807504712,0.2496,2003.3,2001.3,7.44966308]
[1772807504912,0.2496,2003.3,2001.7,7.44966308]
[1772807505208,0.25574502,2003.3,2001.7,7.45418035]
[1772807505402,0.25574502,2003.3,2001.7,22.21918035]
[1772807505607,0.25574502,2003.3,2001.8,7.44966308]
[1772807506208,0.24953,2003.8,2002.0,7.44966308]
[1772807506513,0.24947,2004.3,2002.4,7.44966308]
[1772807506701,0.24947,2004.3,2002.6,7.44966308]
[1772807506906,5.34497927,2005.0,2002.5,0.2497]
[1772807506907,6.61809632,2004.9,2002.8,7.44966308]
[1772807507104,0.24942,2004.7,2003.2,7.44966308]
[1772807507307,0.24942,2004.7,2003.4,7.44966308]
[1772807507503,6.36869632,2005.6,2003.8,7.44966308]
[1772807507703,0.24928,2005.9,2003.5,23.618]
[1772807507704,6.61797632,2005.9,2004.0,7.44966308]
[1772807508008,0.24934,2005.4,2004.2,7.44966308]
[1772807508509,0.00446666,2005.4,2004.2,7.44966308]
[1772807508715,0.00446666,2005.4,2004.3,14.959]
[1772807508911,0.00446666,2005.4,2004.4,7.44966308]
[1772807509611,0.00446666,2005.4,2004.6,7.44966308]
[1772807509907,0.24935,2005.3,2004.6,7.44966308]
[1772807510213,0.24942,2004.8,2004.0,7.44966308]
[1772807510414,0.25380666,2005.4,2004.2,7.44966308]
[1772807510614,0.25380666,2005.4,2004.4,7.44966308]
[1772807510809,6.67344365,2005.4,2003.4,7.44966308]
[1772807511011,0.24941,2004.9,2003.6,7.44966308]
[1772807511207,0.24946,2004.4,2003.2,0.00494395]
[1772807511407,8.14871516,2002.9,2001.6,7.53657649]
[1772807511610,8.14871516,2002.9,2001.6,7.44966308]
[1772807511810,13.14520141,2002.8,2001.6,7.44966308]
[1772807512011,0.24965,2002.9,2001.7,7.44966308]
[1772807512316,0.25401514,2002.9,2001.7,7.45512668]
[1772807512511,0.00436514,2002.9,2001.9,7.44966308]
[1772807513018,8.1530803,2002.9,2001.9,7.44966308]
[1772807513312,8.14879516,2002.3,2001.7,0.0054636]
[1772807513711,7.89906516,2002.1,2001.7,0.0054636]
[1772807514513,13.41829772,2002.0,2000.6,7.44966308]
[1772807514712,7.89906516,2001.9,2000.7,7.44966308]
[1772807515019,7.63897,2001.8,2000.7,7.44966308]
[1772807515209,0.2498,2001.7,1999.5,7.71139225]
[1772807515414,7.63897,2001.4,1999.7,7.71139225]
[1772807515609,7.64407666,2001.4,1999.9,7.71139225]
[1772807515810,7.63897,2001.2,1999.9,7.71139225]
[1772807516220,7.64407666,2001.4,2000.1,7.71139225]
[1772807516414,0.00510666,2001.4,2000.1,7.71139225]
[1772807516614,0.00510666,2001.4,2000.4,7.71139225]
[1772807517020,7.64407666,2001.4,2000.4,7.71139225]
[1772807517219,0.00510666,2001.4,2000.4,7.71139225]
[1772807517420,7.63897,2002.0,2000.4,7.71139225]
[1772807517817,7.63897,2002.0,1999.8,0.08698576]
[1772807517818,7.63897,2001.8,2000.6,7.71139225]
[1772807518418,7.64337174,2001.8,2000.6,7.71139225]
[1772807518614,0.00440174,2001.8,2000.6,7.71139225]
[1772807518814,0.00440174,2001.8,2000.9,7.71139225]
[1772807519214,0.00440174,2001.8,2001.1,7.44966308]
[1772807519411,0.00440174,2001.8,2001.1,7.71503532]
[1772807519817,0.00440174,2001.8,2001.1,15.1646984]
[1772807520113,7.88877,2001.7,2001.1,0.00364307]
[1772807520517,0.00440174,2001.8,1999.8,0.08698576]
[1772807520518,7.88879,2001.5,2000.5,7.71139225]
[1772807521319,12.98134408,2001.4,1999.9,7.71139225]
[1772807521516,0.24981,2001.6,2000.0,7.71139225]
[1772807521920,0.24981,2001.6,2000.3,7.81847995]
[1772807521921,0.24988,2001.1,2000.3,7.81847995]
[1772807522421,7.71621718,2000.9,1999.9,0.00446018]
[1772807522620,7.71621718,2000.9,1999.9,7.82294013]
[1772807522819,7.71624718,2000.6,1999.9,0.00446018]
[1772807523023,0.24993,2000.6,1999.3,7.81847995]
[1772807523323,0.24993,2000.6,1998.7,15.08]
[1772807523324,0.24993,2000.6,1999.8,7.81847995]
[1772807523518,7.46631718,2000.9,1999.8,7.81847995]
[1772807523720,7.71617718,2001.2,2000.1,7.81847995]
[1772807523914,0.24986,2001.2,2000.1,7.82213404]
[1772807524116,0.24986,2001.2,2000.5,7.81847995]
[1772807524319,0.00440174,2001.8,2000.5,7.81847995]
[1772807524719,0.00440174,2001.8,2000.9,7.81847995]
[1772807525017,7.46631718,2002.3,2000.9,7.81847995]
[1772807525219,7.46631718,2002.9,2000.9,7.81847995]
[1772807525424,7.46631718,2002.9,2001.1,7.81847995]
[1772807525619,5.60955489,2003.7,2001.1,7.81847995]
[1772807525620,7.71597718,2002.8,2001.1,7.81847995]
[1772807525822,0.24973,2002.3,2001.1,7.81847995]
[1772807526018,12.72873587,2002.8,2001.1,7.81847995]
[1772807526019,0.24979,2001.8,2001.1,7.81847995]
[1772807526220,0.24985,2001.3,2000.2,7.81847995]
[1772807526418,0.00620212,2001.3,2000.5,7.81847995]
[1772807526626,0.2498,2001.7,2000.5,7.81847995]
[1772807526821,7.46631718,2001.7,2000.2,7.81847995]
[1772807527124,7.71623718,2000.7,2000.1,0.00365409]
[1772807527522,7.72157953,2000.7,2000.1,0.00365409]
[1772807527723,7.72157953,2000.7,1999.5,7.81847995]
[1772807527925,0.24998,2000.2,1999.5,7.81847995]
[1772807528625,0.00534235,2000.7,1999.5,7.82294271]
[1772807528823,0.00534235,2000.7,1999.9,7.81847995]
[1772807529020,0.25,2000.1,1999.6,7.81847995]
[1772807529222,0.25,2000.1,1999.5,0.00446276]
[1772807529525,7.46631718,2000.6,1999.7,7.81847995]
[1772807529721,7.71632718,2000.0,1999.3,0.08701512]
[1772807529925,7.46631718,1999.5,1998.6,7.81847995]
[1772807530226,9.22334235,2000.7,1998.6,7.81847995]
[1772807530227,7.46631718,1999.8,1998.6,7.81847995]
[1772807530426,7.71636718,1999.7,1998.6,7.81847995]
[1772807530626,0.25005,1999.7,1998.7,7.81847995]
[1772807530826,7.71636718,1999.7,1998.7,7.81847995]
[1772807531023,7.71638718,1999.5,1998.7,0.00643088]
[1772807531224,7.71638718,1999.5,1998.0,7.81847995]
[1772807531425,7.46631718,1999.8,1998.2,7.81847995]
[1772807531630,7.71631718,2000.1,1998.2,7.81847995]
[1772807531827,7.71631718,2000.1,1998.8,7.81847995]
[1772807532231,0.25,2000.1,1998.8,7.82410851]
[1772807532426,7.71631718,2000.1,1999.1,7.81847995]
[1772807532823,7.71650718,1998.6,1997.9,0.67704526]
[1772807533128,7.71652718,1998.4,1997.9,0.67704526]
[1772807533524,7.46631718,1998.7,1997.9,8.49552521]
[1772807533720,0.25014,1999.0,1997.9,8.49552521]
[1772807533721,7.71645718,1999.0,1997.9,8.49552521]
[1772807533920,7.72145295,1999.0,1997.9,8.50014406]
[1772807534120,7.72145295,1999.0,1998.1,7.81847995]
[1772807534321,0.00499577,1999.0,1997.9,8.50014406]
[1772807534525,7.46631718,1999.9,1998.8,15.26814303]
[1772807534720,7.46631718,1999.9,1998.9,7.81847995]
[1772807534929,7.71634718,1999.8,1998.1,7.81847995]
[1772807535129,7.71634718,1999.8,1997.9,15.94466411]
[1772807535130,0.2501,1999.3,1998.2,7.81847995]
[1772807535431,7.71641718,1999.3,1998.2,7.81847995]
[1772807535630,0.25506061,1999.3,1998.3,7.81847995]
[1772807535829,0.25016,1998.8,1998.3,7.81847995]
[1772807536025,7.47127779,1999.3,1998.3,7.81847995]
[1772807536228,7.71642718,1999.2,1998.0,7.81847995]
[1772807536528,0.00496061,1999.3,1998.5,7.81847995]
[1772807536924,7.71635718,1999.8,1998.5,7.81847995]
[1772807537330,7.46631718,1999.6,1998.5,7.81847995]
[1772807537526,7.71638718,1999.5,1998.6,7.44966308]
[1772807537721,0.25007,1999.5,1998.5,7.81847995]
[1772807537927,0.25564174,1999.5,1998.5,7.81847995]
[1772807538231,0.25564174,1999.5,1999.0,15.26814303]
[1772807538536,7.72195892,1999.5,1998.1,7.44966308]
[1772807538834,7.71641718,1999.3,1998.2,7.81847995]
[1772807539126,7.71641718,1999.3,1998.3,7.81847995]
[1772807539323,0.00557174,1999.5,1998.3,7.81847995]
[1772807539726,0.00557174,1999.5,1998.9,15.26814303]
[1772807539927,0.00557174,1999.5,1998.9,7.81847995]
[1772807540128,7.71639718,1999.4,1998.6,7.81847995]
[1772807540325,0.25011,1999.2,1998.0,7.81847995]
[1772807540630,0.00557174,1999.5,1998.3,7.81847995]
[1772807541033,7.46631718,2000.2,1998.3,8.06868995]
[1772807541234,7.46631718,2000.5,1998.8,0.25015]
[1772807541429,7.46631718,2000.5,1998.4,13.127155]
[1772807541430,0.24991,2000.8,1999.1,7.81847995]
[1772807541631,7.71622718,2000.8,1999.1,7.81847995]
[1772807541926,7.46631718,2000.8,1999.8,7.81847995]
[1772807542126,7.46631718,2000.8,1999.8,7.82329911]
[1772807542127,0.24997,2000.4,1999.8,7.82329911]
[1772807542330,7.46989042,2000.8,1999.8,0.00481916]
[1772807542835,0.00357324,2000.8,2000.2,15.26814303]
[1772807543135,0.00357324,2000.8,2000.2,7.81847995]
[1772807543431,7.46631718,2001.4,2000.6,7.44966308]
[1772807543634,0.24985,2001.3,2000.4,7.81847995]
[1772807543828,7.64619755,1999.9,1998.9,7.81847995]
[1772807544034,0.25003,1999.9,1998.9,7.81847995]
[1772807544234,7.71634718,1999.9,1998.9,7.81847995]
[1772807544833,7.72097247,1999.9,1998.9,7.8228877]
[1772807545138,7.71640718,1999.4,1998.9,0.00440775]
[1772807545439,0.00462529,1999.9,1998.3,7.81847995]
[1772807545440,0.25015,1998.9,1998.3,7.81847995]
[1772807545635,0.25015,1998.9,1997.9,0.67704526]
[1772807545835,7.71646718,1998.9,1998.0,7.81847995]
[1772807546434,7.71653718,1998.4,1998.0,0.00400542]
[1772807546631,0.25022,1998.4,1997.9,7.92152522]
[1772807546834,10.11816032,2000.6,1997.9,7.92152522]
[1772807546835,7.71645718,1999.0,1997.9,7.92152522]
[1772807547640,0.00648617,1999.0,1997.9,7.92751873]
[1772807548134,0.25015,1998.9,1997.9,7.92751873]
[1772807548836,0.00648617,1999.0,1997.9,7.92751873]
[1772807549036,7.46631718,1999.8,1998.0,7.81847995]
[1772807549336,7.46631718,1999.3,1998.1,7.81847995]
[1772807549536,7.71647718,1998.8,1997.9,0.10903878]
[1772807550036,7.7204296,1998.8,1997.9,0.10903878]
[1772807550234,7.7204296,1998.8,1997.9,7.92751873]
[1772807550436,7.46631718,1999.2,1997.9,7.92751873]
[1772807550633,7.71640718,1999.4,1997.9,7.92751873]
[1772807550830,7.46631718,1998.8,1997.9,7.92751873]
[1772807551343,0.25017,1998.7,1997.9,7.92751873]
[1772807551641,7.72145909,1998.7,1997.9,0.10903878]
[1772807551836,8.27017407,1998.3,1997.9,0.10903878]
[1772807552031,8.27017407,1998.3,1997.3,7.64459776]
[1772807552235,0.25028,1997.8,1997.0,7.64459776]
[1772807552538,0.25028,1997.8,1996.1,13.17509977]
[1772807552539,0.00497191,1998.7,1997.4,7.64459776]
[1772807552739,0.00497191,1998.7,1997.5,7.64459776]
[1772807552936,8.27012407,1998.6,1997.5,7.64459776]
[1772807553139,0.25024,1998.2,1997.5,7.64980651]
[1772807553537,0.25024,1998.2,1997.6,7.64459776]
[1772807553732,0.00497191,1998.7,1997.6,7.64459776]
[1772807554332,8.27004407,1999.3,1997.6,7.64459776]
[1772807554542,0.2501,1999.3,1997.9,7.64459776]
[1772807554840,8.01994407,1999.6,1998.1,7.64459776]
[1772807555143,0.24997,2000.4,1998.9,7.64459776]
[1772807555437,0.25624318,2000.4,1999.4,7.64459776]
[1772807555836,0.00627318,2000.4,1999.4,7.64459776]
[1772807556039,8.01994407,2000.9,1999.4,7.64459776]
[1772807556240,0.24989,2001.0,1999.4,7.64459776]
[1772807556439,0.24981,2001.6,2000.4,7.64459776]
[1772807556637,3.6035208,2003.1,2000.3,3.6035208]
[1772807556638,8.26967407,2002.2,2000.6,7.64459776]
[1772807557042,8.27347038,2002.2,2000.9,7.64459776]
[1772807557239,0.24983,2001.5,2000.6,7.64972779]
[1772807557444,8.01994407,2001.8,2000.6,7.64972779]
[1772807557743,8.27348038,2002.2,2000.6,7.64972779]
[1772807558446,0.00379631,2002.2,2001.2,7.64459776]
[1772807558640,0.00379631,2002.2,2001.4,7.64459776]
[1772807558834,8.01994407,2003.1,2001.7,7.64459776]
[1772807559036,8.01994407,2003.1,2001.3,21.19117007]
[1772807559037,0.24958,2003.4,2002.2,7.64459776]
[1772807559243,8.26952407,2003.4,2002.2,7.64459776]
[1772807559847,0.25467158,2003.4,2002.2,7.64950458]
[1772807560142,0.00509158,2003.4,2002.2,7.64950458]
[1772807560343,8.01994407,2004.8,2003.2,7.64459776]
[1772807560541,0.2495,2004.1,2003.1,23.12059776]
[1772807560743,8.26944407,2004.1,2002.8,7.64459776]
[1772807560939,0.24958,2003.5,2002.5,7.64459776]
[1772807561143,8.26952407,2003.5,2002.5,7.64459776]
[1772807561345,8.27359825,2003.5,2002.5,7.64459776]
[1772807561738,8.27359825,2003.5,2002.2,0.00490682]
[1772807561944,0.24965,2002.9,2002.2,7.64950458]
[1772807562444,8.26966407,2002.3,2002.2,0.0011105]
[1772807562648,8.26966407,2002.3,2001.5,7.64459776]
[1772807562849,0.2498,2001.7,2000.8,23.12559776]
[1772807563147,0.2498,2001.7,2000.9,7.64459776]
[1772807563448,0.2498,2001.7,2000.5,5.52692051]
[1772807563449,8.26974407,2001.7,2000.5,7.64459776]
[1772807563746,8.27471469,2001.7,2000.5,7.65033567]
[1772807564147,8.01994407,2001.5,2000.5,7.65033567]
[1772807564447,0.00497062,2001.7,2000.5,7.65033567]
[1772807564641,0.00497062,2001.7,2000.7,7.64459776]
[1772807564841,8.01994407,2002.8,2001.2,7.64459776]
[1772807565046,8.26957407,2003.1,2001.7,7.64459776]
[1772807565547,0.24963,2003.1,2001.7,7.64459776]
[1772807565748,0.25559857,2003.1,2001.7,7.64459776]
[1772807566250,8.27554264,2003.1,2001.9,7.64459776]
[1772807566546,0.00596857,2003.1,2001.9,7.64459776]
[1772807566743,8.26949407,2003.7,2002.1,7.64459776]
[1772807566949,8.26942407,2004.2,2002.2,7.64459776]
[1772807567250,8.26942407,2004.2,2002.3,7.64459776]
[1772807567647,8.01994407,2003.6,2002.5,7.64459776]
[1772807567847,8.02521315,2003.6,2002.5,7.64962309]
[1772807568243,0.00526908,2003.6,2002.5,7.64962309]
[1772807568448,8.26941407,2004.3,2002.7,7.64459776]
[1772807568846,8.26941407,2004.3,2002.9,7.64459776]
[1772807569353,8.26936407,2004.7,2003.2,7.64459776]
[1772807569551,0.00418186,2004.3,2003.2,7.64459776]
[1772807570051,8.26936407,2004.7,2003.4,7.64459776]
[1772807570252,0.24949,2004.2,2003.3,15.485]
[1772807570451,0.24945,2004.5,2003.4,7.64459776]
[1772807570652,8.26939407,2004.5,2003.3,15.485]
[1772807570859,8.26939407,2004.5,2003.3,23.12959776]
[1772807571052,8.27503791,2004.5,2003.4,7.64459776]
[1772807571853,8.01994407,2003.9,2002.6,7.64459776]
[1772807572048,8.26947407,2003.8,2002.7,15.481]
[1772807572452,8.26947407,2003.8,2002.6,7.64459776]
[1772807572657,0.24953,2003.8,2002.6,7.64459776]
[1772807572862,8.26947407,2003.8,2002.6,7.64459776]
[1772807573357,8.26954407,2003.3,2002.5,0.00502533]
[1772807574061,8.01994407,2003.8,2002.5,7.64962309]
[1772807574654,8.01994407,2004.3,2002.8,7.64459776]
[1772807574858,0.25509384,2004.5,2003.0,7.84951536]
[1772807575154,7.43908492,2004.5,2003.0,7.84951536]
[1772807575360,7.43908492,2004.5,2003.2,7.84951536]
[1772807575552,7.18963492,2004.5,2003.2,7.84951536]
[1772807575754,0.24951,2004.0,2003.1,7.84951536]
[1772807575960,7.43350108,2004.0,2003.0,15.394]
[1772807576158,7.43350108,2004.0,2002.8,7.84951536]
[1772807576362,7.43350108,2004.0,2002.7,15.397]
[1772807576663,7.43360108,2003.3,2002.5,0.00502533]
[1772807577060,7.18399108,2003.8,2002.5,7.85454069]
[1772807577759,7.43354108,2003.7,2002.5,7.85454069]
[1772807578657,0.00564384,2004.5,2002.5,7.85454069]
[1772807578658,0.24961,2003.3,2002.5,7.85454069]
[1772807579962,7.18399108,2003.8,2002.5,7.85454069]
[1772807580263,7.43354108,2003.7,2002.5,7.85454069]
[1772807580460,7.18399108,2004.1,2002.7,7.84951536]
[1772807580664,7.43346108,2004.3,2002.7,7.84951536]
[1772807580864,0.24954,2003.8,2002.8,7.84951536]
[1772807581062,7.43353108,2003.8,2002.9,23.26451536]
[1772807581255,7.18399108,2003.8,2002.6,23.26551536]
[1772807581459,7.18399108,2003.6,2002.6,23.26551536]
[1772807581660,7.31947795,2003.5,2002.6,23.26551536]
[1772807581856,7.31947795,2003.5,2002.6,15.416]
[1772807582061,7.31945795,2003.7,2002.7,7.60486246]
[1772807582258,7.31950795,2003.3,2002.5,0.00502533]